[Event "Titled Tuesday Blitz July 26 Early 2022"]
[White "Visakh N R"]
[Black "Zemlyanskii, Ivan"]
[WhiteFideId "25012223"]
[BlackFideId "24249971"]
[WhiteElo "2448"]
[BlackElo "1815"]
[Result "1/2-1/2"]
[Round "03"]
[TimeControl "180+1"]
[Date "2022.07.26"]
[WhiteClock "0:02:22"]
[BlackClock "0:01:09"]

1. e4 {[%clk 0:03:00]}  c5 {[%clk 0:03:00]} 2. Nf3 {[%clk 0:03:00]}  e6 {[%clk 0:03:00]} 3. b3 {[%clk 0:02:58]}  Nc6 {[%clk 0:02:59]} 4. Bb2 {[%clk 0:02:58]}  a6 {[%clk 0:02:59]} 5. g3 {[%clk 0:02:56]}  Qc7 {[%clk 0:02:50]} 6. Bg2 {[%clk 0:02:54]}  d6 {[%clk 0:02:49]} 7. O-O {[%clk 0:02:54]}  Nf6 {[%clk 0:02:50]} 8. Re1 {[%clk 0:02:54]}  e5 {[%clk 0:02:46]} 9. c3 {[%clk 0:02:53]}  Bg4 {[%clk 0:02:39]} 10. d4 {[%clk 0:02:49]}  cxd4 {[%clk 0:02:33]} 11. cxd4 {[%clk 0:02:50]}  exd4 {[%clk 0:02:31]} 12. Bxd4 {[%clk 0:02:51]}  Nxd4 {[%clk 0:02:29]} 13. Qxd4 {[%clk 0:02:52]}  Be7 {[%clk 0:02:29]} 14. Nc3 {[%clk 0:02:52]}  O-O {[%clk 0:02:28]} 15. Rac1 {[%clk 0:02:52]}  Qa5 {[%clk 0:02:19]} 16. Nd5 {[%clk 0:02:44]}  Nxd5 {[%clk 0:02:15]} 17. exd5 {[%clk 0:02:44]}  Bxf3 {[%clk 0:02:08]} 18. Rxe7 {[%clk 0:02:39]}  Bxg2 {[%clk 0:02:03]} 19. Kxg2 {[%clk 0:02:40]}  Qxa2 {[%clk 0:02:03]} 20. Rxb7 {[%clk 0:02:39]}  Qe2 {[%clk 0:01:45]} 21. Rcc7 {[%clk 0:02:37]}  Rae8 {[%clk 0:01:23]} 22. Qf4 {[%clk 0:02:30]}  Qe5 {[%clk 0:01:15]} 23. Qxe5 {[%clk 0:02:28]}  Rxe5 {[%clk 0:01:16]} 24. Rc6 {[%clk 0:02:26]}  Rxd5 {[%clk 0:01:16]} 25. Rxa6 {[%clk 0:02:27]}  g6 {[%clk 0:01:16]} 26. b4 {[%clk 0:02:27]}  Rc8 {[%clk 0:01:14]} 27. Ra2 {[%clk 0:02:24]}  Rc1 {[%clk 0:01:10]} 28. Rb2 {[%clk 0:02:23]}  Rdd1 {[%clk 0:01:09]} 29. Rd7 {[%clk 0:02:20]}  Rb1 {[%clk 0:01:08]} 30. Rxb1 {[%clk 0:02:21]}  Rxb1 {[%clk 0:01:09]} 31. Rxd6 {[%clk 0:02:21]}  Rxb4 {[%clk 0:01:09]} 32. h4 {[%clk 0:02:22]} 1/2-1/2


[Site "https://www.chess.com"]

[Event "Titled Tuesday Blitz July 26 Early 2022"]
[White "Wagner, Dennis"]
[Black "Valmana Canto, Jaime"]
[WhiteFideId "24650684"]
[BlackFideId "2268990"]
[WhiteElo "2355"]
[BlackElo "2256"]
[Result "1-0"]
[Round "03"]
[TimeControl "180+1"]
[Date "2022.07.27"]
[WhiteClock "0:01:00"]
[BlackClock "0:00:33"]

1. e4 {[%clk 0:02:59]}  c5 {[%clk 0:02:57]} 2. Nf3 {[%clk 0:02:59]}  Nc6 {[%clk 0:02:57]} 3. Bb5 {[%clk 0:02:59]}  Nf6 {[%clk 0:02:56]} 4. Nc3 {[%clk 0:02:58]}  Qc7 {[%clk 0:02:55]} 5. O-O {[%clk 0:02:54]}  Nd4 {[%clk 0:02:53]} 6. Re1 {[%clk 0:02:53]}  a6 {[%clk 0:02:53]} 7. Bf1 {[%clk 0:02:50]}  Ng4 {[%clk 0:02:52]} 8. g3 {[%clk 0:02:47]}  Nxf3+ {[%clk 0:02:52]} 9. Qxf3 {[%clk 0:02:47]}  Ne5 {[%clk 0:02:53]} 10. Qe2 {[%clk 0:02:41]}  e6 {[%clk 0:02:53]} 11. d3 {[%clk 0:02:38]}  d6 {[%clk 0:02:50]} 12. f4 {[%clk 0:02:32]}  Nc6 {[%clk 0:02:47]} 13. Qf2 {[%clk 0:02:11]}  Be7 {[%clk 0:02:40]} 14. f5 {[%clk 0:01:43]}  O-O {[%clk 0:02:35]} 15. Bh3 {[%clk 0:01:43]}  Bf6 {[%clk 0:02:30]} 16. Kh1 {[%clk 0:01:39]}  b5 {[%clk 0:02:23]} 17. Rf1 {[%clk 0:01:38]}  Qe7 {[%clk 0:02:17]} 18. Be3 {[%clk 0:01:23]}  Bb7 {[%clk 0:02:13]} 19. Rae1 {[%clk 0:01:18]}  Bd4 {[%clk 0:02:05]} 20. Kg1 {[%clk 0:01:17]}  b4 {[%clk 0:01:22]} 21. Nd1 {[%clk 0:01:16]}  Rac8 {[%clk 0:00:59]} 22. c3 {[%clk 0:01:16]}  Bxe3 {[%clk 0:00:45]} 23. Nxe3 {[%clk 0:01:16]}  Ne5 {[%clk 0:00:44]} 24. Ng4 {[%clk 0:01:02]}  Nxd3 {[%clk 0:00:43]} 25. Qe3 {[%clk 0:01:02]}  Nxe1 {[%clk 0:00:43]} 26. f6 {[%clk 0:01:03]}  gxf6 {[%clk 0:00:33]} 27. Nxf6+ {[%clk 0:01:00]} 1-0


[Site "https://www.chess.com"]

[Event "Titled Tuesday Blitz July 26 Early 2022"]
[White "Agasarov, Benik"]
[Black "Vagman, Roy"]
[WhiteFideId "13314823"]
[BlackFideId "2828995"]
[WhiteElo "2712"]
[BlackElo "1956"]
[Result "1-0"]
[Round "04"]
[TimeControl "180+1"]
[Date "2022.07.27"]
[WhiteClock "0:00:16"]
[BlackClock "0:00:13"]

1. Nf3 {[%clk 0:03:00]}  Nf6 {[%clk 0:02:58]} 2. b3 {[%clk 0:03:00]}  g6 {[%clk 0:02:52]} 3. Bb2 {[%clk 0:02:59]}  Bg7 {[%clk 0:02:52]} 4. e3 {[%clk 0:02:58]}  O-O {[%clk 0:02:52]} 5. Be2 {[%clk 0:02:59]}  d6 {[%clk 0:02:50]} 6. d4 {[%clk 0:02:56]}  b6 {[%clk 0:02:49]} 7. O-O {[%clk 0:02:54]}  Bb7 {[%clk 0:02:49]} 8. c4 {[%clk 0:02:54]}  Nbd7 {[%clk 0:02:49]} 9. a3 {[%clk 0:02:45]}  Qe8 {[%clk 0:02:46]} 10. Nc3 {[%clk 0:02:39]}  e5 {[%clk 0:02:43]} 11. Nb5 {[%clk 0:02:37]}  e4 {[%clk 0:02:17]} 12. Nd2 {[%clk 0:02:32]}  Qd8 {[%clk 0:02:12]} 13. f3 {[%clk 0:02:24]}  a6 {[%clk 0:01:59]} 14. Nc3 {[%clk 0:02:23]}  Bh6 {[%clk 0:01:45]} 15. f4 {[%clk 0:02:18]}  Qe7 {[%clk 0:01:31]} 16. g4 {[%clk 0:02:14]}  g5 {[%clk 0:01:32]} 17. fxg5 {[%clk 0:02:10]}  Bxg5 {[%clk 0:01:31]} 18. d5 {[%clk 0:01:44]}  Bxe3+ {[%clk 0:01:28]} 19. Kh1 {[%clk 0:01:45]}  c6 {[%clk 0:01:17]} 20. g5 {[%clk 0:01:41]}  Bxg5 {[%clk 0:01:12]} 21. Rg1 {[%clk 0:01:38]}  h6 {[%clk 0:01:10]} 22. h4 {[%clk 0:01:37]}  Nxd5 {[%clk 0:00:47]} 23. cxd5 {[%clk 0:01:29]}  cxd5 {[%clk 0:00:47]} 24. hxg5 {[%clk 0:01:30]}  hxg5 {[%clk 0:00:44]} 25. Nf1 {[%clk 0:01:04]}  Qe5 {[%clk 0:00:25]} 26. Qd2 {[%clk 0:00:44]}  e3 {[%clk 0:00:21]} 27. Nxe3 {[%clk 0:00:23]}  d4+ {[%clk 0:00:22]} 28. Ncd5 {[%clk 0:00:23]}  Bxd5+ {[%clk 0:00:14]} 29. Nxd5 {[%clk 0:00:22]}  Qxd5+ {[%clk 0:00:15]} 30. Rg2 {[%clk 0:00:20]}  Kg7 {[%clk 0:00:03]} 31. Qxg5+ {[%clk 0:00:16]}  Qxg5 {[%clk 0:00:03]} 32. Rxg5+ {[%clk 0:00:17]}  Kf6 {[%clk 0:00:03]} 33. Rg3 {[%clk 0:00:17]}  Rh8+ {[%clk 0:00:04]} 34. Kg2 {[%clk 0:00:17]}  Ne5 {[%clk 0:00:05]} 35. Bxd4 {[%clk 0:00:18]}  Rac8 {[%clk 0:00:04]} 36. Rf1+ {[%clk 0:00:15]}  Ke6 {[%clk 0:00:05]} 37. Bxe5 {[%clk 0:00:13]}  dxe5 {[%clk 0:00:05]} 38. Bg4+ {[%clk 0:00:13]}  Ke7 {[%clk 0:00:03]} 39. Bxc8 {[%clk 0:00:14]}  Rxc8 {[%clk 0:00:04]} 40. Re3 {[%clk 0:00:14]}  f6 {[%clk 0:00:04]} 41. Kg3 {[%clk 0:00:14]}  Ke6 {[%clk 0:00:04]} 42. Ref3 {[%clk 0:00:14]}  Rg8+ {[%clk 0:00:04]} 43. Kf2 {[%clk 0:00:13]}  f5 {[%clk 0:00:04]} 44. Ke2 {[%clk 0:00:13]}  f4 {[%clk 0:00:04]} 45. Kd3 {[%clk 0:00:12]}  Rd8+ {[%clk 0:00:04]} 46. Ke2 {[%clk 0:00:13]}  Kf5 {[%clk 0:00:04]} 47. R3f2 {[%clk 0:00:12]}  Rc8 {[%clk 0:00:04]} 48. Rd1 {[%clk 0:00:12]}  Ke4 {[%clk 0:00:04]} 49. Ke1 {[%clk 0:00:11]}  Rc3 {[%clk 0:00:04]} 50. Re2+ {[%clk 0:00:11]}  Kf5 {[%clk 0:00:05]} 51. Rd5 {[%clk 0:00:12]}  Rxb3 {[%clk 0:00:03]} 52. Rdxe5+ {[%clk 0:00:11]}  Kg4 {[%clk 0:00:04]} 53. a4 {[%clk 0:00:10]}  Kf3 {[%clk 0:00:04]} 54. Rf2+ {[%clk 0:00:10]}  Kg3 {[%clk 0:00:04]} 55. Rg5+ {[%clk 0:00:10]}  Kh4 {[%clk 0:00:05]} 56. Rg8 {[%clk 0:00:10]}  Rb1+ {[%clk 0:00:05]} 57. Ke2 {[%clk 0:00:10]}  Rb2+ {[%clk 0:00:04]} 58. Kf3 {[%clk 0:00:11]}  Rb3+ {[%clk 0:00:04]} 59. Kxf4 {[%clk 0:00:11]}  Rb4+ {[%clk 0:00:04]} 60. Kf5 {[%clk 0:00:12]}  Kh3 {[%clk 0:00:03]} 61. Rf3+ {[%clk 0:00:11]}  Kh2 {[%clk 0:00:03]} 62. Rf4 {[%clk 0:00:12]}  Rb3 {[%clk 0:00:01]} 63. Rh4+ {[%clk 0:00:12]}  Rh3 {[%clk 0:00:02]} 64. Rxh3+ {[%clk 0:00:12]}  Kxh3 {[%clk 0:00:03]} 65. Rg6 {[%clk 0:00:13]}  b5 {[%clk 0:00:04]} 66. Rxa6 {[%clk 0:00:12]}  b4 {[%clk 0:00:04]} 67. Rb6 {[%clk 0:00:12]}  b3 {[%clk 0:00:05]} 68. Rxb3+ {[%clk 0:00:13]}  Kg2 {[%clk 0:00:06]} 69. Ke4 {[%clk 0:00:13]}  Kf2 {[%clk 0:00:07]} 70. a5 {[%clk 0:00:14]}  Ke2 {[%clk 0:00:08]} 71. Kd4 {[%clk 0:00:13]}  Kd2 {[%clk 0:00:09]} 72. Kc4 {[%clk 0:00:14]}  Kc2 {[%clk 0:00:10]} 73. a6 {[%clk 0:00:15]}  Kc1 {[%clk 0:00:11]} 74. a7 {[%clk 0:00:16]}  Kc2 {[%clk 0:00:11]} 75. a8=Q {[%clk 0:00:17]}  Kc1 {[%clk 0:00:12]} 76. Qa2 {[%clk 0:00:16]}  Kd1 {[%clk 0:00:13]} 77. Rb1# {[%clk 0:00:16]} 1-0


[Site "https://www.chess.com"]

[Event "Titled Tuesday Blitz July 26 Early 2022"]
[White "Amburgy, Ryan"]
[Black "Howell, David W L"]
[WhiteFideId "30924820"]
[BlackFideId "410608"]
[WhiteElo "2066"]
[BlackElo "2559"]
[Result "0-1"]
[Round "04"]
[TimeControl "180+1"]
[Date "2022.07.26"]
[WhiteClock "0:00:18"]
[BlackClock "0:00:12"]

1. d4 {[%clk 0:03:00]}  d5 {[%clk 0:02:52]} 2. Nc3 {[%clk 0:03:00]}  Nf6 {[%clk 0:02:31]} 3. Bf4 {[%clk 0:02:59]}  e6 {[%clk 0:02:22]} 4. Nb5 {[%clk 0:02:58]}  Bb4+ {[%clk 0:02:21]} 5. c3 {[%clk 0:02:58]}  Ba5 {[%clk 0:02:21]} 6. a4 {[%clk 0:02:59]}  a6 {[%clk 0:02:06]} 7. b4 {[%clk 0:02:59]}  Bxb4 {[%clk 0:01:50]} 8. cxb4 {[%clk 0:02:59]}  axb5 {[%clk 0:01:50]} 9. axb5 {[%clk 0:03:00]}  Rxa1 {[%clk 0:01:45]} 10. Qxa1 {[%clk 0:03:00]}  Nh5 {[%clk 0:01:41]} 11. Nh3 {[%clk 0:02:46]}  Nxf4 {[%clk 0:01:39]} 12. Nxf4 {[%clk 0:02:47]}  O-O {[%clk 0:01:38]} 13. e3 {[%clk 0:02:46]}  Qd6 {[%clk 0:01:37]} 14. Qc3 {[%clk 0:02:45]}  Nd7 {[%clk 0:01:30]} 15. Nd3 {[%clk 0:02:32]}  Nf6 {[%clk 0:01:24]} 16. f3 {[%clk 0:02:28]}  Bd7 {[%clk 0:01:19]} 17. Ne5 {[%clk 0:02:21]}  Ra8 {[%clk 0:01:16]} 18. Bd3 {[%clk 0:02:20]}  Ne8 {[%clk 0:01:00]} 19. O-O {[%clk 0:02:05]}  f6 {[%clk 0:00:59]} 20. Ng4 {[%clk 0:02:04]}  Qb6 {[%clk 0:00:52]} 21. Qc5 {[%clk 0:01:53]}  Nd6 {[%clk 0:00:48]} 22. Rc1 {[%clk 0:01:45]}  Bxb5 {[%clk 0:00:46]} 23. Qxb6 {[%clk 0:01:34]}  cxb6 {[%clk 0:00:46]} 24. Nf2 {[%clk 0:01:34]}  Bc4 {[%clk 0:00:28]} 25. Kf1 {[%clk 0:01:16]}  b5 {[%clk 0:00:24]} 26. Ke1 {[%clk 0:01:14]}  Ra3 {[%clk 0:00:24]} 27. Kd2 {[%clk 0:01:07]}  Bxd3 {[%clk 0:00:24]} 28. Nxd3 {[%clk 0:01:07]}  Nc4+ {[%clk 0:00:25]} 29. Ke2 {[%clk 0:01:00]}  Ra2+ {[%clk 0:00:25]} 30. Kf1 {[%clk 0:00:58]}  Nxe3+ {[%clk 0:00:25]} 31. Kg1 {[%clk 0:00:58]}  Rxg2+ {[%clk 0:00:25]} 32. Kh1 {[%clk 0:00:59]}  Rc2 {[%clk 0:00:25]} 33. Ra1 {[%clk 0:00:58]}  Nf5 {[%clk 0:00:18]} 34. Ra8+ {[%clk 0:00:56]}  Kf7 {[%clk 0:00:18]} 35. Ra7 {[%clk 0:00:57]}  Rc7 {[%clk 0:00:18]} 36. Kg2 {[%clk 0:00:49]}  Nxd4 {[%clk 0:00:18]} 37. Kf2 {[%clk 0:00:50]}  g5 {[%clk 0:00:18]} 38. Ra8 {[%clk 0:00:50]}  h5 {[%clk 0:00:17]} 39. Ke3 {[%clk 0:00:50]}  e5 {[%clk 0:00:17]} 40. Rh8 {[%clk 0:00:48]}  Nf5+ {[%clk 0:00:17]} 41. Kd2 {[%clk 0:00:48]}  h4 {[%clk 0:00:17]} 42. Nc5 {[%clk 0:00:48]}  b6 {[%clk 0:00:16]} 43. Nd3 {[%clk 0:00:48]}  Kg6 {[%clk 0:00:15]} 44. Rb8 {[%clk 0:00:48]}  Nd4 {[%clk 0:00:14]} 45. Rxb6 {[%clk 0:00:48]}  Kf5 {[%clk 0:00:15]} 46. Nc5 {[%clk 0:00:47]}  Ra7 {[%clk 0:00:14]} 47. Kd1 {[%clk 0:00:40]}  Ra1+ {[%clk 0:00:14]} 48. Kd2 {[%clk 0:00:40]}  Ra2+ {[%clk 0:00:15]} 49. Kd3 {[%clk 0:00:39]}  Ra3+ {[%clk 0:00:14]} 50. Kd2 {[%clk 0:00:40]}  Nxf3+ {[%clk 0:00:15]} 51. Kc2 {[%clk 0:00:39]}  Nd4+ {[%clk 0:00:15]} 52. Kd2 {[%clk 0:00:40]}  Rf3 {[%clk 0:00:15]} 53. Nd7 {[%clk 0:00:40]}  Kg4 {[%clk 0:00:15]} 54. Nxf6+ {[%clk 0:00:40]}  Kh3 {[%clk 0:00:16]} 55. Nxd5 {[%clk 0:00:41]}  Kxh2 {[%clk 0:00:16]} 56. Ne3 {[%clk 0:00:38]}  Nb3+ {[%clk 0:00:15]} 57. Kd3 {[%clk 0:00:38]}  g4 {[%clk 0:00:12]} 58. Rh6 {[%clk 0:00:35]}  h3 {[%clk 0:00:12]} 59. Rh5 {[%clk 0:00:31]}  Kg3 {[%clk 0:00:10]} 60. Ke4 {[%clk 0:00:25]}  Rxe3+ {[%clk 0:00:09]} 61. Kxe3 {[%clk 0:00:25]}  h2 {[%clk 0:00:10]} 62. Ke4 {[%clk 0:00:23]}  Kg2 {[%clk 0:00:10]} 63. Kxe5 {[%clk 0:00:23]}  g3 {[%clk 0:00:10]} 64. Kf4 {[%clk 0:00:24]}  Nd4 {[%clk 0:00:11]} 65. Rh4 {[%clk 0:00:18]}  Ne2+ {[%clk 0:00:10]} 66. Kg4 {[%clk 0:00:18]}  h1=Q {[%clk 0:00:11]} 67. Rxh1 {[%clk 0:00:18]}  Kxh1 {[%clk 0:00:12]} 0-1


[Site "https://www.chess.com"]

[Event "Titled Tuesday Blitz July 26 Early 2022"]
[White "Aravindh, Chithambaram VR."]
[Black "Lazavik, Denis"]
[WhiteFideId "5072786"]
[BlackFideId "13515110"]
[WhiteElo "2577"]
[BlackElo "2437"]
[Result "0-1"]
[Round "04"]
[TimeControl "180+1"]
[Date "2022.07.26"]
[WhiteClock "0:00:01"]
[BlackClock "0:00:05"]

1. b3 {[%clk 0:03:00]}  d5 {[%clk 0:02:59]} 2. Bb2 {[%clk 0:03:00]}  Nf6 {[%clk 0:02:59]} 3. e3 {[%clk 0:02:59]}  c6 {[%clk 0:02:58]} 4. Nf3 {[%clk 0:02:59]}  Bf5 {[%clk 0:02:58]} 5. c4 {[%clk 0:02:58]}  e6 {[%clk 0:02:58]} 6. Nc3 {[%clk 0:02:57]}  h6 {[%clk 0:02:56]} 7. d4 {[%clk 0:02:52]}  Nbd7 {[%clk 0:02:54]} 8. Bd3 {[%clk 0:02:50]}  Bxd3 {[%clk 0:02:44]} 9. Qxd3 {[%clk 0:02:51]}  Be7 {[%clk 0:02:44]} 10. O-O {[%clk 0:02:51]}  O-O {[%clk 0:02:43]} 11. Rfd1 {[%clk 0:02:34]}  Re8 {[%clk 0:02:42]} 12. e4 {[%clk 0:02:31]}  dxe4 {[%clk 0:02:41]} 13. Nxe4 {[%clk 0:02:32]}  Nxe4 {[%clk 0:02:41]} 14. Qxe4 {[%clk 0:02:33]}  Qa5 {[%clk 0:02:38]} 15. a3 {[%clk 0:02:30]}  Rad8 {[%clk 0:02:37]} 16. Rd3 {[%clk 0:02:26]}  Qh5 {[%clk 0:02:34]} 17. Rad1 {[%clk 0:02:23]}  Nf6 {[%clk 0:02:28]} 18. Qe2 {[%clk 0:02:16]}  Bd6 {[%clk 0:02:24]} 19. h3 {[%clk 0:02:16]}  Bf4 {[%clk 0:02:18]} 20. g3 {[%clk 0:01:44]}  Bc7 {[%clk 0:02:14]} 21. Kg2 {[%clk 0:01:44]}  Rd7 {[%clk 0:02:12]} 22. Re3 {[%clk 0:01:04]}  Red8 {[%clk 0:02:05]} 23. Re1 {[%clk 0:01:04]}  Ne8 {[%clk 0:01:56]} 24. Bc3 {[%clk 0:00:54]}  Qf5 {[%clk 0:01:34]} 25. Qb2 {[%clk 0:00:52]}  Qh7 {[%clk 0:01:10]} 26. a4 {[%clk 0:00:47]}  Nd6 {[%clk 0:01:09]} 27. Ne5 {[%clk 0:00:41]}  Nf5 {[%clk 0:01:06]} 28. Nxd7 {[%clk 0:00:36]}  Nxe3+ {[%clk 0:01:06]} 29. Rxe3 {[%clk 0:00:37]}  Rxd7 {[%clk 0:01:05]} 30. b4 {[%clk 0:00:36]}  Qf5 {[%clk 0:00:30]} 31. b5 {[%clk 0:00:36]}  cxb5 {[%clk 0:00:28]} 32. axb5 {[%clk 0:00:37]}  Bb6 {[%clk 0:00:25]} 33. c5 {[%clk 0:00:15]}  Bd8 {[%clk 0:00:24]} 34. Qa2 {[%clk 0:00:12]}  Bf6 {[%clk 0:00:17]} 35. Qxa7 {[%clk 0:00:09]}  Qd5+ {[%clk 0:00:17]} 36. Kg1 {[%clk 0:00:09]}  Bxd4 {[%clk 0:00:13]} 37. Bxd4 {[%clk 0:00:09]}  Qxd4 {[%clk 0:00:14]} 38. Qb8+ {[%clk 0:00:06]}  Kh7 {[%clk 0:00:11]} 39. c6 {[%clk 0:00:05]}  bxc6 {[%clk 0:00:10]} 40. bxc6 {[%clk 0:00:06]}  Qd1+ {[%clk 0:00:10]} 41. Kh2 {[%clk 0:00:06]}  Rd2 {[%clk 0:00:07]} 42. Qf4 {[%clk 0:00:06]}  Qf1 {[%clk 0:00:05]} 43. Qe4+ {[%clk 0:00:01]}  f5 {[%clk 0:00:05]} 0-1


[Site "https://www.chess.com"]

[Event "Titled Tuesday Blitz July 26 Early 2022"]
[White "Balint, Vilmos"]
[Black "Vovk, Orest"]
[WhiteFideId "718050"]
[BlackFideId "14113490"]
[WhiteElo "2059"]
[BlackElo "2203"]
[Result "1/2-1/2"]
[Round "04"]
[TimeControl "180+1"]
[Date "2022.07.27"]
[WhiteClock "0:00:22"]
[BlackClock "0:00:05"]

1. b3 {[%clk 0:02:59]}  Nf6 {[%clk 0:02:57]} 2. Bb2 {[%clk 0:02:59]}  g6 {[%clk 0:02:55]} 3. f4 {[%clk 0:02:57]}  Bg7 {[%clk 0:02:55]} 4. Nf3 {[%clk 0:02:56]}  Nh5 {[%clk 0:02:53]} 5. Bxg7 {[%clk 0:02:55]}  Nxg7 {[%clk 0:02:54]} 6. g3 {[%clk 0:02:55]}  O-O {[%clk 0:02:54]} 7. Bg2 {[%clk 0:02:55]}  Nc6 {[%clk 0:02:54]} 8. e4 {[%clk 0:02:51]}  d6 {[%clk 0:02:51]} 9. d4 {[%clk 0:02:49]}  e5 {[%clk 0:02:49]} 10. d5 {[%clk 0:02:49]}  Nb8 {[%clk 0:02:39]} 11. fxe5 {[%clk 0:02:48]}  dxe5 {[%clk 0:02:39]} 12. Nxe5 {[%clk 0:02:47]}  Qf6 {[%clk 0:02:33]} 13. Qd4 {[%clk 0:02:47]}  Re8 {[%clk 0:02:17]} 14. Nc6 {[%clk 0:02:47]}  Qxd4 {[%clk 0:01:52]} 15. Nxd4 {[%clk 0:02:47]}  f5 {[%clk 0:01:53]} 16. Nd2 {[%clk 0:02:38]}  fxe4 {[%clk 0:01:53]} 17. O-O-O {[%clk 0:02:26]}  e3 {[%clk 0:01:50]} 18. Nc4 {[%clk 0:02:26]}  Nf5 {[%clk 0:01:32]} 19. Nxf5 {[%clk 0:02:11]}  Bxf5 {[%clk 0:01:33]} 20. Rde1 {[%clk 0:02:06]}  e2 {[%clk 0:01:28]} 21. Bf3 {[%clk 0:02:00]}  Nd7 {[%clk 0:01:25]} 22. Rxe2 {[%clk 0:02:00]}  Rxe2 {[%clk 0:01:24]} 23. Bxe2 {[%clk 0:02:01]}  Be4 {[%clk 0:01:24]} 24. Rd1 {[%clk 0:01:59]}  Nf6 {[%clk 0:01:23]} 25. Ne3 {[%clk 0:01:58]}  Re8 {[%clk 0:01:21]} 26. Bb5 {[%clk 0:01:57]}  Re5 {[%clk 0:01:16]} 27. Bc4 {[%clk 0:01:52]}  Kg7 {[%clk 0:01:10]} 28. d6 {[%clk 0:01:52]}  cxd6 {[%clk 0:01:05]} 29. Rxd6 {[%clk 0:01:53]}  b5 {[%clk 0:00:57]} 30. Bd3 {[%clk 0:01:49]}  Bf3 {[%clk 0:00:37]} 31. Kd2 {[%clk 0:01:45]}  Rh5 {[%clk 0:00:29]} 32. h4 {[%clk 0:01:44]}  a5 {[%clk 0:00:23]} 33. Rb6 {[%clk 0:01:40]}  b4 {[%clk 0:00:23]} 34. Rb7+ {[%clk 0:00:59]}  Kf8 {[%clk 0:00:22]} 35. Ra7 {[%clk 0:00:54]}  Rc5 {[%clk 0:00:20]} 36. Bc4 {[%clk 0:00:53]}  Ne4+ {[%clk 0:00:19]} 37. Ke1 {[%clk 0:00:52]}  Nd6 {[%clk 0:00:16]} 38. Rxh7 {[%clk 0:00:47]}  Be4 {[%clk 0:00:15]} 39. Rd7 {[%clk 0:00:45]}  Nf5 {[%clk 0:00:14]} 40. Rf7+ {[%clk 0:00:41]}  Ke8 {[%clk 0:00:13]} 41. Nxf5 {[%clk 0:00:41]}  Bxf5 {[%clk 0:00:13]} 42. Ra7 {[%clk 0:00:39]}  Bxc2 {[%clk 0:00:12]} 43. Kf2 {[%clk 0:00:34]}  Kf8 {[%clk 0:00:12]} 44. g4 {[%clk 0:00:33]}  Bb1 {[%clk 0:00:11]} 45. Ke3 {[%clk 0:00:25]}  Bxa2 {[%clk 0:00:11]} 46. Kd4 {[%clk 0:00:25]}  Rc8 {[%clk 0:00:08]} 47. Rxa5 {[%clk 0:00:26]}  Rd8+ {[%clk 0:00:08]} 48. Kc5 {[%clk 0:00:25]}  Bb1 {[%clk 0:00:09]} 49. Kxb4 {[%clk 0:00:25]}  Rd4 {[%clk 0:00:08]} 50. Rg5 {[%clk 0:00:25]}  Ke7 {[%clk 0:00:06]} 51. Kc5 {[%clk 0:00:25]}  Rf4 {[%clk 0:00:06]} 52. b4 {[%clk 0:00:25]}  Rf8 {[%clk 0:00:05]} 53. b5 {[%clk 0:00:24]}  Rc8+ {[%clk 0:00:05]} 54. Kd4 {[%clk 0:00:24]}  Rd8+ {[%clk 0:00:05]} 55. Rd5 {[%clk 0:00:24]}  Rb8 {[%clk 0:00:05]} 56. Ke5 {[%clk 0:00:23]}  Rb6 {[%clk 0:00:04]} 57. Rc5 {[%clk 0:00:23]}  Rb8 {[%clk 0:00:04]} 58. Rc7+ {[%clk 0:00:23]}  Kf8 {[%clk 0:00:04]} 59. Kd6 {[%clk 0:00:19]}  Rd8+ {[%clk 0:00:03]} 60. Kc5 {[%clk 0:00:19]}  Be4 {[%clk 0:00:03]} 61. b6 {[%clk 0:00:19]}  Rd2 {[%clk 0:00:02]} 62. b7 {[%clk 0:00:18]}  Bxb7 {[%clk 0:00:02]} 63. Rxb7 {[%clk 0:00:19]}  Rh2 {[%clk 0:00:03]} 64. Be6 {[%clk 0:00:18]}  Rxh4 {[%clk 0:00:03]} 65. Rf7+ {[%clk 0:00:18]}  Ke8 {[%clk 0:00:03]} 66. Rf4 {[%clk 0:00:19]}  Ke7 {[%clk 0:00:03]} 67. Re4 {[%clk 0:00:20]}  Kf6 {[%clk 0:00:03]} 68. Kd4 {[%clk 0:00:20]}  Kg5 {[%clk 0:00:03]} 69. Bd7 {[%clk 0:00:20]}  Rh2 {[%clk 0:00:04]} 70. Re5+ {[%clk 0:00:19]}  Kf4 {[%clk 0:00:04]} 71. Re4+ {[%clk 0:00:18]}  Kg5 {[%clk 0:00:04]} 72. Ke5 {[%clk 0:00:18]}  Rd2 {[%clk 0:00:04]} 73. Be6 {[%clk 0:00:19]}  Rb2 {[%clk 0:00:03]} 74. Re1 {[%clk 0:00:19]}  Rb5+ {[%clk 0:00:03]} 75. Bd5 {[%clk 0:00:20]}  Rb4 {[%clk 0:00:04]} 76. Be6 {[%clk 0:00:17]}  Rb5+ {[%clk 0:00:05]} 77. Kd6 {[%clk 0:00:16]}  Rb6+ {[%clk 0:00:05]} 78. Kd5 {[%clk 0:00:16]}  Rb5+ {[%clk 0:00:05]} 79. Kc4 {[%clk 0:00:17]}  Ra5 {[%clk 0:00:05]} 80. Kd4 {[%clk 0:00:16]}  Ra4+ {[%clk 0:00:05]} 81. Kc5 {[%clk 0:00:16]}  Ra5+ {[%clk 0:00:06]} 82. Kd6 {[%clk 0:00:17]}  Ra6+ {[%clk 0:00:06]} 83. Ke7 {[%clk 0:00:17]}  Ra7+ {[%clk 0:00:06]} 84. Bd7 {[%clk 0:00:18]}  Ra6 {[%clk 0:00:06]} 85. Re5+ {[%clk 0:00:18]}  Kh4 {[%clk 0:00:06]} 86. Re6 {[%clk 0:00:18]}  Ra4 {[%clk 0:00:04]} 87. Rxg6 {[%clk 0:00:18]}  Re4+ {[%clk 0:00:04]} 88. Kf7 {[%clk 0:00:18]}  Rd4 {[%clk 0:00:04]} 89. Be6 {[%clk 0:00:18]}  Rf4+ {[%clk 0:00:04]} 90. Rf6 {[%clk 0:00:18]}  Rb4 {[%clk 0:00:05]} 91. Kg6 {[%clk 0:00:18]}  Rb5 {[%clk 0:00:04]} 92. Rf5 {[%clk 0:00:17]}  Rb6 {[%clk 0:00:05]} 93. Rh5+ {[%clk 0:00:17]}  Kg3 {[%clk 0:00:04]} 94. Kf6 {[%clk 0:00:18]}  Kf4 {[%clk 0:00:05]} 95. g5 {[%clk 0:00:18]}  Rb8 {[%clk 0:00:04]} 96. Rh4+ {[%clk 0:00:18]}  Kg3 {[%clk 0:00:04]} 97. Ra4 {[%clk 0:00:19]}  Rf8+ {[%clk 0:00:03]} 98. Ke7 {[%clk 0:00:20]}  Ra8 {[%clk 0:00:04]} 99. g6 {[%clk 0:00:20]}  Rxa4 {[%clk 0:00:04]} 100. g7 {[%clk 0:00:19]}  Ra7+ {[%clk 0:00:04]} 101. Bd7 {[%clk 0:00:19]}  Ra8 {[%clk 0:00:04]} 102. Be8 {[%clk 0:00:20]}  Ra7+ {[%clk 0:00:04]} 103. Bd7 {[%clk 0:00:20]}  Ra8 {[%clk 0:00:05]} 104. Be8 {[%clk 0:00:21]}  Ra7+ {[%clk 0:00:05]} 105. Kf8 {[%clk 0:00:21]}  Rxg7 {[%clk 0:00:05]} 106. Kxg7 {[%clk 0:00:22]} 1/2-1/2


[Site "https://www.chess.com"]